[Event "Djerba Festival Blitz 2025"]
[Site "Djerba"]
[Date "2025.02.21"]
[Round "5.26"]
[White "Guinet, Andy"]
[Black "Zenaidi, Sadok"]
[Result "0-1"]
[ECO "A01"]
[WhiteElo "1665"]
[BlackElo "1872"]
[PlyCount "51"]
[EventDate "2025.02.15"]
[EventType "swiss"]
[EventCountry "TUN"]
[TimeControl "180+3"]

1. b3 {[%emt 0:00:03]} Nf6 {[%emt 0:00:03]} 2. Bb2 {[%emt 0:00:01]} d6 {[%emt 0:00:01]} 3. e3 {[%emt 0:00:02]} e5 {[%emt 0:00:04]} 4. c4 {[%emt 0:00:02]} Be7 {[%emt 0:00:03]} 5. Nc3 {[%emt 0:00:02]} c6 {[%emt 0:00:08]} 6. Nf3 {[%emt 0:00:03]} Bg4 {[%emt 0:00:02]} 7. Be2 {[%emt 0:00:01]} Nbd7 {[%emt 0:00:02]} 8. O-O {[%emt 0:00:03]} O-O {[%emt 0:00:04]} 9. h3 {[%emt 0:00:02]} Bh5 {[%emt 0:00:03]} 10. d4 {[%emt 0:00:31]} Qc7 {[%emt 0:00:02]} 11. Nd2 {[%emt 0:00:12]} Bxe2 {[%emt 0:00:05]} 12. Nxe2 {[%emt 0:00:03]} d5 {[%emt 0:00:15]} 13. cxd5 {[%emt 0:00:14]} Nxd5 {[%emt 0:00:15]} 14. Nf3 {[%emt 0:00:17]} e4 {[%emt 0:00:07]} 15. Ne5 {[%emt 0:00:29]} f5 {[%emt 0:00:14]} 16. Rc1 {[%emt 0:00:05]} Rad8 {[%emt 0:00:28]} 17. Qc2 {[%emt 0:00:26]} Kh8 {[%emt 0:00:15]} 18. Nf4 {[%emt 0:00:11]} Nxf4 {[%emt 0:00:16]} 19. exf4 {[%emt 0:00:02]} Nb6 {[%emt 0:00:02]} 20. Rce1 {[%emt 0:00:24]} Nd5 {[%emt 0:00:15]} 21. Nc4 {[%emt 0:00:20]} Qxf4 {[%emt 0:00:10]} 22. Ne3 {[%emt 0:00:10]} Bb4 {[%emt 0:00:06]} 23. Nxd5 {[%emt 0:00:07]} Rxd5 {[%emt 0:00:02]} 24. Re3 {[%emt 0:00:03]} Bd6 {[%emt 0:00:05]} 25. g3 {[%emt 0:00:06]} Qh6 {[%emt 0:00:01]} 26. h4 {[%emt 0:00:02]} 0-1

[Event "Djerba Festival Blitz 2025"]
[Site "Djerba"]
[Date "2025.02.21"]
[Round "5.27"]
[White "Alouani, Ahmed"]
[Black "Azreug, Lazhar"]
[Result "0-1"]
[ECO "D79"]
[WhiteElo "1617"]
[BlackElo "1793"]
[PlyCount "110"]
[EventDate "2025.02.15"]
[EventType "swiss"]
[EventCountry "TUN"]
[TimeControl "180+3"]

1. Nf3 {[%emt 0:03:06]} c5 2. g3 {[%emt 0:00:03]} Nc6 3. Bg2 {[%emt 0:00:03]} g6 4. O-O Bg7 {[%emt 0:03:15]} 5. c3 {[%emt 0:00:06]} Nf6 {[%emt 0:00:03]} 6. d4 {[%emt 0:00:03]} cxd4 {[%emt 0:00:03]} 7. cxd4 {[%emt 0:00:03]} d5 {[%emt 0:00:03]} 8. Nc3 {[%emt 0:00:03]} O-O {[%emt 0:00:03]} 9. Re1 {[%emt 0:00:03]} Ne4 {[%emt 0:00:03]} 10. Nd2 {[%emt 0:00:03]} Bf5 {[%emt 0:00:03]} 11. Ndxe4 {[%emt 0:00:03]} dxe4 {[%emt 0:00:03]} 12. d5 {[%emt 0:00:03]} Nb4 {[%emt 0:00:03]} 13. Nxe4 {[%emt 0:00:03]} Rc8 {[%emt 0:00:03]} 14. Nc3 {[%emt 0:00:03]} Nc2 {[%emt 0:00:03]} 15. Bd2 {[%emt 0:00:03]} Nxa1 {[%emt 0:00:03]} 16. e4 {[%emt 0:00:03]} Bg4 {[%emt 0:00:03]} 17. f3 {[%emt 0:00:03]} Bd7 {[%emt 0:00:03]} 18. Qxa1 {[%emt 0:00:03]} Qb6+ {[%emt 0:00:03]} 19. Kh1 {[%emt 0:00:03]} a5 {[%emt 0:00:03]} 20. f4 {[%emt 0:00:03]} a4 {[%emt 0:00:03]} 21. e5 {[%emt 0:00:03]} a3 {[%emt 0:00:03]} 22. bxa3 {[%emt 0:00:03]} Ra8 {[%emt 0:00:03]} 23. a4 {[%emt 0:00:03]} Bxa4 {[%emt 0:00:03]} 24. Nxa4 Rxa4 {[%emt 0:00:03]} 25. Qb1 {[%emt 0:00:06]} Qxb1 {[%emt 0:00:03]} 26. Rxb1 Rxa2 27. Be3 {[%emt 0:00:06]} Rb8 {[%emt 0:00:06]} 28. h3 {[%emt 0:00:03]} b5 {[%emt 0:00:03]} 29. Bf1 {[%emt 0:00:03]} b4 {[%emt 0:00:03]} 30. Bc4 {[%emt 0:00:03]} Ra3 {[%emt 0:00:03]} 31. Bg1 {[%emt 0:00:03]} Bf8 {[%emt 0:00:03]} 32. Kh2 {[%emt 0:00:03]} Rc8 {[%emt 0:00:03]} 33. Rc1 {[%emt 0:00:03]} b3 {[%emt 0:00:03]} 34. d6 {[%emt 0:00:03]} exd6 {[%emt 0:00:03]} 35. Bxf7+ {[%emt 0:00:03]} Kxf7 36. Rxc8 {[%emt 0:00:03]} dxe5 {[%emt 0:00:06]} 37. fxe5 {[%emt 0:00:03]} Bg7 {[%emt 0:00:03]} 38. e6+ {[%emt 0:00:03]} Kxe6 {[%emt 0:00:03]} 39. Rc6+ {[%emt 0:00:03]} Kd7 {[%emt 0:00:03]} 40. Rb6 b2 {[%emt 0:00:03]} 41. Rb7+ Kc6 {[%emt 0:00:03]} 42. Rb8 {[%emt 0:00:09]} Ra1 {[%emt 0:00:03]} 43. Be3 {[%emt 0:00:03]} b1=Q {[%emt 0:00:03]} 44. Rxb1 {[%emt 0:00:03]} Rxb1 45. Kg2 {[%emt 0:00:03]} Rb2+ 46. Kf1 {[%emt 0:00:03]} Be5 {[%emt 0:00:09]} 47. g4 {[%emt 0:00:03]} Kd5 {[%emt 0:00:03]} 48. Bh6 {[%emt 0:00:03]} Ke4 {[%emt 0:00:03]} 49. Ke1 {[%emt 0:00:03]} Kf3 {[%emt 0:00:03]} 50. Kd1 {[%emt 0:00:03]} Rh2 {[%emt 0:00:03]} 51. h4 {[%emt 0:00:03]} Rxh4 {[%emt 0:00:03]} 52. Bf8 {[%emt 0:00:03]} Rxg4 {[%emt 0:00:03]} 53. Ba3 {[%emt 0:00:03]} h5 {[%emt 0:00:03]} 54. Ke1 {[%emt 0:00:03]} h4 {[%emt 0:00:03]} 55. Bc1 {[%emt 0:00:03]} h3 {[%emt 0:00:03]} 0-1

[Event "Djerba Festival Blitz 2025"]
[Site "Djerba"]
[Date "2025.02.21"]
[Round "5.28"]
[White "Marceil, Jean"]
[Black "Benzarti, Thabet"]
[Result "1-0"]
[ECO "B15"]
[WhiteElo "1901"]
[BlackElo "1664"]
[PlyCount "47"]
[EventDate "2025.02.15"]
[EventType "swiss"]
[EventCountry "TUN"]
[TimeControl "180+3"]

1. d4 {[%emt 0:00:04]} d5 {[%emt 0:00:03]} 2. e4 {[%emt 0:03:05]} c6 {[%emt 0:00:06]} 3. Nc3 {[%emt 0:00:00]} e6 {[%emt 0:00:05]} 4. Bd3 {[%emt 0:00:00]} Nd7 {[%emt 0:00:05]} 5. Nf3 {[%emt 0:00:00]} dxe4 {[%emt 0:00:03]} 6. Nxe4 {[%emt 0:00:00]} Ngf6 {[%emt 0:00:03]} 7. Bg5 {[%emt 0:00:00]} Be7 {[%emt 0:00:03]} 8. O-O {[%emt 0:00:00]} O-O {[%emt 0:00:03]} 9. Bxf6 {[%emt 0:00:00]} Nxf6 {[%emt 0:00:06]} 10. Ng3 {[%emt 0:00:00]} a6 {[%emt 0:00:11]} 11. a4 {[%emt 0:00:00]} Re8 {[%emt 0:00:07]} 12. Re1 {[%emt 0:00:00]} Rb8 {[%emt 0:00:09]} 13. c4 {[%emt 0:00:00]} b5 {[%emt 0:00:08]} 14. cxb5 {[%emt 0:00:00]} cxb5 {[%emt 0:00:04]} 15. axb5 {[%emt 0:00:00]} axb5 {[%emt 0:00:02]} 16. Ne5 {[%emt 0:00:00]} Qb6 {[%emt 0:00:39]} 17. Ne4 {[%emt 0:00:00]} Nxe4 {[%emt 0:01:57]} 18. Bxe4 {[%emt 0:00:00]} Bf6 {[%emt 0:00:00]} 19. Bxh7+ {[%emt 0:00:00]} Kh8 {[%emt 0:00:00]} 20. Qh5 {[%emt 0:00:00]} Bxe5 {[%emt 0:00:09]} 21. Rxe5 {[%emt 0:00:00]} Bb7 {[%emt 0:00:00]} 22. Qxf7 {[%emt 0:00:08]} Qc6 {[%emt 0:00:00]} 23. Be4 {[%emt 0:00:08]} Qc8 {[%emt 0:00:00]} 24. Rh5# {[%emt 0:00:08]} 1-0

[Event "Djerba Festival Blitz 2025"]
[Site "Djerba"]
[Date "2025.02.21"]
[Round "5.29"]
[White "El Gazzar, Ahmed"]
[Black "Alonso Garuti, Luis Eugenio"]
[Result "0-1"]
[ECO "B02"]
[WhiteElo "1667"]
[BlackElo "1845"]
[PlyCount "54"]
[EventDate "2025.02.15"]
[EventType "swiss"]
[EventCountry "TUN"]
[TimeControl "180+3"]

1. e4 {[%emt 0:00:03]} d5 {[%emt 0:00:03]} 2. exd5 {[%emt 0:00:03]} Nf6 {[%emt 0:00:02]} 3. Nc3 {[%emt 0:00:02]} c6 {[%emt 0:00:01]} 4. dxc6 {[%emt 0:00:05]} e5 {[%emt 0:00:03]} 5. Bc4 {[%emt 0:00:14]} Bc5 {[%emt 0:00:04]} 6. Nge2 {[%emt 0:00:18]} Nxc6 {[%emt 0:00:14]} 7. O-O {[%emt 0:00:04]} O-O {[%emt 0:00:03]} 8. a3 {[%emt 0:00:08]} a5 {[%emt 0:00:03]} 9. d3 {[%emt 0:00:07]} Bg4 {[%emt 0:00:06]} 10. h3 {[%emt 0:00:06]} Bh5 {[%emt 0:00:04]} 11. Bg5 {[%emt 0:00:06]} Nd4 {[%emt 0:00:11]} 12. Re1 {[%emt 0:00:23]} h6 {[%emt 0:00:07]} 13. Bh4 {[%emt 0:02:03]} g5 {[%emt 0:00:05]} 14. Bg3 {[%emt 0:00:00]} Qd7 {[%emt 0:00:14]} 15. Bxe5 {[%emt 0:00:00]} Qf5 {[%emt 0:00:43]} 16. Bxf6 {[%emt 0:00:00]} Nf3+ {[%emt 0:00:52]} 17. Kh1 {[%emt 0:00:00]} Qxf6 {[%emt 0:00:13]} 18. Ne4 {[%emt 0:00:00]} Qe5 {[%emt 0:00:08]} 19. gxf3 {[%emt 0:00:00]} Bxf3+ {[%emt 0:00:02]} 20. Kg1 {[%emt 0:00:00]} Bxe4 {[%emt 0:00:34]} 21. dxe4 {[%emt 0:00:00]} Rad8 {[%emt 0:00:02]} 22. Bd3 {[%emt 0:00:00]} f5 {[%emt 0:00:02]} 23. Qc1 {[%emt 0:00:04]} fxe4 {[%emt 0:00:02]} 24. Bc4+ {[%emt 0:00:09]} Kh8 {[%emt 0:00:02]} 25. c3 {[%emt 0:00:12]} Bxf2+ {[%emt 0:00:03]} 26. Kh1 {[%emt 0:00:06]} e3 {[%emt 0:00:02]} 27. Qc2 {[%emt 0:00:08]} Qh2+ {[%emt 0:00:06]} 0-1

[Event "Djerba Festival Blitz 2025"]
[Site "Djerba"]
[Date "2025.02.21"]
[Round "5.30"]
[White "El Kadi, Ismael"]
[Black "Ben Mbarek, Mohamed"]
[Result "1-0"]
[ECO "B22"]
[WhiteElo "1852"]
[BlackElo "1570"]
[PlyCount "71"]
[EventDate "2025.02.15"]
[EventType "swiss"]
[EventCountry "TUN"]
[TimeControl "180+3"]

1. e4 {[%emt 0:03:06]} c5 {[%emt 0:03:06]} 2. c3 {[%emt 0:00:03]} Nf6 {[%emt 0:00:03]} 3. e5 {[%emt 0:00:03]} Nd5 {[%emt 0:00:03]} 4. d4 {[%emt 0:00:03]} cxd4 {[%emt 0:00:03]} 5. cxd4 {[%emt 0:00:03]} Nc6 {[%emt 0:00:03]} 6. Nf3 {[%emt 0:00:03]} d6 {[%emt 0:00:03]} 7. Nc3 {[%emt 0:00:03]} Nb6 {[%emt 0:00:03]} 8. exd6 {[%emt 0:00:03]} Qxd6 {[%emt 0:00:03]} 9. a3 {[%emt 0:00:03]} g6 {[%emt 0:00:03]} 10. Be2 {[%emt 0:00:03]} Bg7 {[%emt 0:00:03]} 11. Be3 {[%emt 0:00:03]} O-O {[%emt 0:00:03]} 12. O-O {[%emt 0:00:03]} e5 {[%emt 0:00:03]} 13. Nb5 {[%emt 0:00:03]} Qd7 {[%emt 0:00:03]} 14. dxe5 {[%emt 0:00:03]} Qxd1 {[%emt 0:00:03]} 15. Rfxd1 {[%emt 0:00:03]} Nxe5 {[%emt 0:00:03]} 16. Nxe5 {[%emt 0:00:03]} Bxe5 {[%emt 0:00:03]} 17. Bd4 {[%emt 0:00:03]} Bxd4 {[%emt 0:00:03]} 18. Rxd4 {[%emt 0:00:03]} Be6 {[%emt 0:00:03]} 19. Nc7 {[%emt 0:00:03]} Rac8 {[%emt 0:00:03]} 20. Nxe6 {[%emt 0:00:03]} fxe6 {[%emt 0:00:03]} 21. Bg4 {[%emt 0:00:03]} Rc2 {[%emt 0:00:03]} 22. Bxe6+ {[%emt 0:00:03]} Kh8 {[%emt 0:00:03]} 23. b4 {[%emt 0:00:03]} Rfxf2 {[%emt 0:00:03]} 24. Bh3 {[%emt 0:00:03]} Nc4 {[%emt 0:00:03]} 25. Rd7 {[%emt 0:00:03]} Ne5 {[%emt 0:00:03]} 26. Rxb7 {[%emt 0:00:03]} Nf3+ {[%emt 0:00:03]} 27. gxf3 {[%emt 0:00:03]} Rxh2 {[%emt 0:00:03]} 28. Re1 {[%emt 0:00:03]} Rhe2 {[%emt 0:00:03]} 29. Rxe2 {[%emt 0:00:03]} Rxe2 {[%emt 0:00:03]} 30. Kf1 {[%emt 0:00:03]} Re8 {[%emt 0:00:03]} 31. Rxa7 {[%emt 0:00:03]} Rc8 {[%emt 0:00:03]} 32. Kf2 {[%emt 0:00:03]} Rc2+ {[%emt 0:00:03]} 33. Kg3 {[%emt 0:00:03]} Rc3 {[%emt 0:00:03]} 34. b5 Rc8 {[%emt 0:00:03]} 35. b6 {[%emt 0:00:06]} Rb8 36. b7 {[%emt 0:00:03]} 1-0

[Event "Djerba Festival Blitz 2025"]
[Site "Djerba"]
[Date "2025.02.21"]
[Round "5.31"]
[White "Baduel Ghalimi, Maxence"]
[Black "Mendil, Yacine"]
[Result "1-0"]
[ECO "D45"]
[WhiteElo "1506"]
[BlackElo "1699"]
[PlyCount "63"]
[EventDate "2025.02.15"]
[EventType "swiss"]
[EventCountry "TUN"]
[TimeControl "180+3"]

1. d4 {[%emt 0:00:04]} d5 {[%emt 0:00:03]} 2. c4 {[%emt 0:00:01]} c6 {[%emt 0:00:01]} 3. Nf3 {[%emt 0:00:03]} Nf6 {[%emt 0:00:03]} 4. Nc3 {[%emt 0:00:02]} e6 {[%emt 0:00:02]} 5. e3 {[%emt 0:00:01]} Be7 {[%emt 0:00:04]} 6. Be2 {[%emt 0:00:02]} O-O {[%emt 0:00:02]} 7. O-O {[%emt 0:00:02]} Nbd7 {[%emt 0:00:03]} 8. h3 {[%emt 0:00:02]} dxc4 {[%emt 0:00:04]} 9. Bxc4 {[%emt 0:00:02]} Nd5 {[%emt 0:00:02]} 10. Nxd5 {[%emt 0:00:08]} exd5 {[%emt 0:00:02]} 11. Bd3 {[%emt 0:00:02]} Nf6 {[%emt 0:00:02]} 12. Qc2 {[%emt 0:00:05]} h6 {[%emt 0:00:03]} 13. Re1 {[%emt 0:00:11]} Be6 {[%emt 0:00:02]} 14. Nd2 {[%emt 0:00:14]} Rc8 {[%emt 0:00:02]} 15. Qa4 {[%emt 0:00:16]} a6 {[%emt 0:00:06]} 16. b3 {[%emt 0:00:11]} Qd6 {[%emt 0:00:23]} 17. e4 {[%emt 0:00:20]} dxe4 {[%emt 0:00:14]} 18. Nxe4 {[%emt 0:00:03]} Nxe4 {[%emt 0:00:08]} 19. Rxe4 {[%emt 0:00:08]} Bf6 {[%emt 0:00:11]} 20. Bb2 {[%emt 0:00:10]} Bd5 {[%emt 0:00:08]} 21. Re2 {[%emt 0:00:09]} Rfe8 {[%emt 0:00:14]} 22. Rae1 {[%emt 0:00:04]} Rxe2 {[%emt 0:00:21]} 23. Rxe2 {[%emt 0:00:01]} g6 {[%emt 0:00:05]} 24. Qa5 {[%emt 0:00:03]} Bg7 {[%emt 0:00:07]} 25. Qd2 {[%emt 0:00:08]} Kh7 {[%emt 0:00:24]} 26. Qe1 {[%emt 0:00:21]} Rc7 {[%emt 0:00:18]} 27. Bc1 {[%emt 0:00:10]} Bxd4 {[%emt 0:00:22]} 28. Qd2 {[%emt 0:00:18]} Bg7 {[%emt 0:00:07]} 29. Qf4 {[%emt 0:00:13]} Qxf4 {[%emt 0:00:11]} 30. Bxf4 {[%emt 0:00:02]} Rd7 {[%emt 0:00:08]} 31. f3 {[%emt 0:00:38]} f5 {[%emt 0:00:07]} 32. Bd2 {[%emt 0:00:08]} 1-0

[Event "Djerba Festival Blitz 2025"]
[Site "Djerba"]
[Date "2025.02.21"]
[Round "5.32"]
[White "Skhiri Youssef"]
[Black "Chavallard, Yanis"]
[Result "1-0"]
[ECO "A42"]
[WhiteElo "1808"]
[BlackElo "1605"]
[PlyCount "41"]
[EventDate "2025.02.15"]
[EventType "swiss"]
[EventCountry "TUN"]
[TimeControl "180+3"]

1. c4 {[%emt 0:00:03]} g6 {[%emt 0:00:04]} 2. Nc3 {[%emt 0:00:02]} Bg7 {[%emt 0:00:02]} 3. e4 {[%emt 0:00:02]} c6 {[%emt 0:00:03]} 4. d4 {[%emt 0:00:04]} d6 {[%emt 0:00:04]} 5. Nge2 {[%emt 0:00:03]} Nd7 {[%emt 0:00:04]} 6. Ng3 {[%emt 0:00:04]} Ngf6 {[%emt 0:00:03]} 7. Be2 {[%emt 0:00:03]} e5 {[%emt 0:00:05]} 8. d5 {[%emt 0:00:03]} c5 {[%emt 0:00:11]} 9. h4 {[%emt 0:00:04]} h5 {[%emt 0:00:19]} 10. a3 {[%emt 0:00:24]} a5 {[%emt 0:00:08]} 11. Nb5 {[%emt 0:00:03]} b6 {[%emt 0:00:06]} 12. Nxd6+ {[%emt 0:00:04]} Kf8 {[%emt 0:00:03]} 13. f4 {[%emt 0:00:06]} exf4 {[%emt 0:00:14]} 14. Bxf4 {[%emt 0:00:04]} Qc7 {[%emt 0:00:15]} 15. O-O {[%emt 0:00:13]} Qd8 {[%emt 0:00:09]} 16. e5 {[%emt 0:00:06]} Nh7 {[%emt 0:00:18]} 17. Nxf7 {[%emt 0:00:14]} Kxf7 {[%emt 0:00:06]} 18. e6+ {[%emt 0:00:02]} Ke7 {[%emt 0:00:07]} 19. d6+ {[%emt 0:00:18]} Kxe6 {[%emt 0:00:20]} 20. Qd5+ {[%emt 0:00:09]} Kf6 {[%emt 0:01:22]} 21. Be5# {[%emt 0:00:00]} 1-0

[Event "Djerba Festival Blitz 2025"]
[Site "Djerba"]
[Date "2025.02.21"]
[Round "5.33"]
[White "Dauvois, Theo"]
[Black "Chabbouh, Mohamed Rayen"]
[Result "1-0"]
[ECO "D07"]
[WhiteElo "1663"]
[BlackElo "1518"]
[PlyCount "63"]
[EventDate "2025.02.15"]
[EventType "swiss"]
[EventCountry "TUN"]
[TimeControl "180+3"]

1. d4 {[%emt 0:00:04]} d5 {[%emt 0:00:02]} 2. c4 {[%emt 0:00:02]} e6 {[%emt 0:00:03]} 3. Nc3 {[%emt 0:00:02]} Bb4 {[%emt 0:00:06]} 4. Nf3 {[%emt 0:00:02]} Nc6 {[%emt 0:00:02]} 5. Qc2 {[%emt 0:00:07]} Nge7 {[%emt 0:00:03]} 6. Bd2 {[%emt 0:00:12]} Bd7 {[%emt 0:00:11]} 7. a3 {[%emt 0:00:02]} Ba5 {[%emt 0:00:02]} 8. b4 {[%emt 0:00:02]} Nxb4 {[%emt 0:00:05]} 9. axb4 {[%emt 0:00:03]} Bxb4 {[%emt 0:00:02]} 10. e3 {[%emt 0:00:09]} O-O {[%emt 0:00:09]} 11. Bd3 {[%emt 0:00:07]} g6 {[%emt 0:00:09]} 12. O-O {[%emt 0:00:04]} Nc6 {[%emt 0:00:05]} 13. cxd5 {[%emt 0:00:07]} Bxc3 {[%emt 0:00:05]} 14. dxc6 {[%emt 0:00:07]} Bxa1 {[%emt 0:00:12]} 15. cxd7 {[%emt 0:00:05]} Bxd4 {[%emt 0:00:16]} 16. exd4 {[%emt 0:00:20]} Qxd7 {[%emt 0:00:02]} 17. Bh6 {[%emt 0:00:04]} Rfe8 {[%emt 0:00:02]} 18. Qe2 {[%emt 0:00:14]} a5 {[%emt 0:00:02]} 19. Qe5 {[%emt 0:00:02]} f5 {[%emt 0:00:10]} 20. Bc4 {[%emt 0:00:12]} b5 {[%emt 0:00:07]} 21. Bxb5 {[%emt 0:00:07]} Qe7 {[%emt 0:00:04]} 22. Bxe8 {[%emt 0:00:06]} Rxe8 {[%emt 0:00:05]} 23. Qxa5 {[%emt 0:00:04]} Kf7 {[%emt 0:00:15]} 24. Qe5 {[%emt 0:00:04]} Kg8 {[%emt 0:00:06]} 25. Re1 {[%emt 0:00:08]} c6 {[%emt 0:00:12]} 26. Ng5 {[%emt 0:00:05]} c5 {[%emt 0:00:08]} 27. dxc5 {[%emt 0:00:12]} Qd7 {[%emt 0:00:07]} 28. Nxe6 {[%emt 0:00:05]} Re7 {[%emt 0:00:05]} 29. Qf6 {[%emt 0:00:08]} Rf7 {[%emt 0:00:05]} 30. Qd8+ {[%emt 0:00:02]} Qxd8 {[%emt 0:00:02]} 31. Nxd8 {[%emt 0:00:03]} Rd7 {[%emt 0:00:04]} 32. Re8# {[%emt 0:00:02]} 1-0

[Event "Djerba Festival Blitz 2025"]
[Site "Djerba"]
[Date "2025.02.21"]
[Round "5.34"]
[White "Gunduz, Davud"]
[Black "Hafsa, Yessine"]
[Result "1-0"]
[ECO "C47"]
[WhiteElo "1483"]
[BlackElo "1503"]
[PlyCount "99"]
[EventDate "2025.02.15"]
[EventType "swiss"]
[EventCountry "TUN"]
[TimeControl "180+3"]

1. e4 {[%emt 0:00:02]} e5 {[%emt 0:00:02]} 2. Nf3 {[%emt 0:00:02]} Nc6 {[%emt 0:00:02]} 3. d4 {[%emt 0:00:03]} exd4 {[%emt 0:00:03]} 4. Nxd4 {[%emt 0:00:02]} Nf6 {[%emt 0:00:02]} 5. Nc3 {[%emt 0:00:03]} Bb4 {[%emt 0:00:02]} 6. Nxc6 {[%emt 0:00:02]} bxc6 {[%emt 0:00:03]} 7. Bd3 {[%emt 0:00:04]} d5 {[%emt 0:00:02]} 8. exd5 {[%emt 0:00:04]} cxd5 {[%emt 0:00:03]} 9. Bd2 {[%emt 0:00:04]} O-O {[%emt 0:00:08]} 10. O-O {[%emt 0:00:04]} Be6 {[%emt 0:00:03]} 11. Qf3 {[%emt 0:00:11]} Bg4 {[%emt 0:00:08]} 12. Qg3 {[%emt 0:00:12]} c6 {[%emt 0:00:39]} 13. a3 {[%emt 0:00:04]} Ba5 {[%emt 0:00:06]} 14. b4 {[%emt 0:00:02]} Bc7 {[%emt 0:00:02]} 15. Bf4 {[%emt 0:00:18]} Nh5 {[%emt 0:00:11]} 16. Bxc7 {[%emt 0:00:02]} Nxg3 {[%emt 0:00:06]} 17. Bxd8 {[%emt 0:00:10]} Nxf1 {[%emt 0:00:03]} 18. Bg5 {[%emt 0:00:03]} h6 {[%emt 0:00:28]} 19. Bc1 {[%emt 0:00:02]} Rfe8 {[%emt 0:00:14]} 20. Kxf1 {[%emt 0:00:03]} d4 {[%emt 0:00:03]} 21. Ne2 {[%emt 0:00:17]} a5 {[%emt 0:00:06]} 22. bxa5 {[%emt 0:00:07]} Rxa5 {[%emt 0:00:05]} 23. Nxd4 {[%emt 0:00:04]} Rae5 {[%emt 0:00:17]} 24. Be3 {[%emt 0:00:08]} c5 {[%emt 0:00:05]} 25. Nb3 {[%emt 0:00:19]} Rc8 {[%emt 0:00:10]} 26. Nd2 {[%emt 0:00:10]} Be6 {[%emt 0:00:09]} 27. Nf3 {[%emt 0:00:23]} Rd5 {[%emt 0:00:06]} 28. Bc4 {[%emt 0:00:05]} Rd6 {[%emt 0:00:06]} 29. Bxe6 {[%emt 0:00:03]} Rxe6 {[%emt 0:00:56]} 30. a4 {[%emt 0:00:04]} c4 {[%emt 0:00:00]} 31. a5 {[%emt 0:00:13]} Ra8 {[%emt 0:00:00]} 32. Nd2 {[%emt 0:00:18]} c3 {[%emt 0:00:00]} 33. Nb3 {[%emt 0:00:02]} Re5 {[%emt 0:00:00]} 34. Bd4 {[%emt 0:00:05]} Rd5 {[%emt 0:00:00]} 35. Bxc3 {[%emt 0:00:08]} f5 {[%emt 0:00:00]} 36. a6 {[%emt 0:00:13]} Kf7 {[%emt 0:00:00]} 37. a7 {[%emt 0:00:05]} g5 {[%emt 0:00:00]} 38. Nc1 {[%emt 0:00:11]} Rd1+ {[%emt 0:00:03]} 39. Ke2 {[%emt 0:00:04]} Rh1 {[%emt 0:00:02]} 40. h3 {[%emt 0:00:02]} Ke6 {[%emt 0:00:05]} 41. Ba5 {[%emt 0:00:10]} Rc8 {[%emt 0:00:11]} 42. Kd2 {[%emt 0:00:07]} Rf1 {[%emt 0:00:04]} 43. Ke2 {[%emt 0:00:03]} Rh1 {[%emt 0:00:03]} 44. c3 {[%emt 0:00:03]} Ra8 {[%emt 0:00:10]} 45. Bb4 {[%emt 0:00:02]} Kd5 {[%emt 0:00:03]} 46. Kd2 {[%emt 0:00:10]} Kc4 {[%emt 0:00:03]} 47. Ra6 {[%emt 0:00:07]} Kb5 {[%emt 0:00:06]} 48. Rxh6 {[%emt 0:00:02]} Rxa7 {[%emt 0:00:03]} 49. Rh5 {[%emt 0:00:03]} Rd7+ {[%emt 0:00:07]} 50. Kc2 {[%emt 0:00:00]} 1-0

[Event "Djerba Festival Blitz 2025"]
[Site "Djerba"]
[Date "2025.02.21"]
[Round "5.36"]
[White "Chaouech, Oussama"]
[Black "Khider, Amilia"]
[Result "1-0"]
[ECO "D45"]
[WhiteElo "1651"]
[BlackElo "1524"]
[PlyCount "45"]
[EventDate "2025.02.15"]
[EventType "swiss"]
[EventCountry "TUN"]
[TimeControl "180+3"]

1. d4 {[%emt 0:03:06]} d5 {[%emt 0:03:06]} 2. c4 e6 3. Nc3 {[%emt 0:00:06]} Nf6 {[%emt 0:00:06]} 4. Nf3 {[%emt 0:00:03]} c6 {[%emt 0:00:03]} 5. e3 {[%emt 0:00:03]} Be7 {[%emt 0:00:03]} 6. Bd3 {[%emt 0:00:03]} O-O {[%emt 0:00:03]} 7. Qc2 {[%emt 0:00:03]} b6 {[%emt 0:00:03]} 8. cxd5 {[%emt 0:00:03]} cxd5 {[%emt 0:00:03]} 9. Ne5 {[%emt 0:00:03]} Bb7 {[%emt 0:00:03]} 10. Bd2 {[%emt 0:00:03]} Nc6 {[%emt 0:00:03]} 11. a3 {[%emt 0:00:03]} Rc8 {[%emt 0:00:03]} 12. O-O Nxe5 {[%emt 0:00:03]} 13. dxe5 {[%emt 0:00:06]} Nd7 {[%emt 0:00:03]} 14. Bxh7+ {[%emt 0:00:03]} Kh8 {[%emt 0:00:03]} 15. f4 {[%emt 0:00:03]} g6 {[%emt 0:00:03]} 16. Bxg6 fxg6 17. Qxg6 Qe8 {[%emt 0:00:06]} 18. Qxe6 {[%emt 0:00:09]} Nc5 {[%emt 0:00:03]} 19. Qh6+ {[%emt 0:00:03]} Kg8 {[%emt 0:00:03]} 20. Rf3 {[%emt 0:00:03]} Kf7 {[%emt 0:00:03]} 21. e6+ {[%emt 0:00:03]} Nxe6 {[%emt 0:00:03]} 22. f5 {[%emt 0:00:03]} Ng5 {[%emt 0:00:03]} 23. Qg6# {[%emt 0:00:03]} 1-0

[Event "Djerba Festival Blitz 2025"]
[Site "Djerba"]
[Date "2025.02.21"]
[Round "5.39"]
[White "Raymond, Andre"]
[Black "Boudnani, Brahim"]
[Result "0-1"]
[ECO "B07"]
[WhiteElo "1610"]
[BlackElo "1721"]
[PlyCount "50"]
[EventDate "2025.02.15"]
[EventType "swiss"]
[EventCountry "TUN"]
[TimeControl "180+3"]

1. e4 {[%emt 0:03:06]} d6 2. d4 {[%emt 0:00:03]} Nf6 3. Nc3 {[%emt 0:00:03]} Nbd7 {[%emt 0:03:12]} 4. Nf3 {[%emt 0:00:03]} c6 {[%emt 0:00:03]} 5. Bd3 {[%emt 0:00:03]} Qc7 {[%emt 0:00:03]} 6. O-O {[%emt 0:00:03]} e5 {[%emt 0:00:03]} 7. d5 {[%emt 0:00:03]} c5 {[%emt 0:00:03]} 8. Ne2 {[%emt 0:00:03]} Be7 {[%emt 0:00:03]} 9. c4 {[%emt 0:00:03]} Nf8 {[%emt 0:00:03]} 10. h3 {[%emt 0:00:03]} h6 {[%emt 0:00:03]} 11. Ng3 {[%emt 0:00:03]} g5 {[%emt 0:00:03]} 12. Nf5 {[%emt 0:00:03]} Bxf5 {[%emt 0:00:03]} 13. exf5 {[%emt 0:00:03]} g4 {[%emt 0:00:03]} 14. hxg4 {[%emt 0:00:03]} Nxg4 {[%emt 0:00:03]} 15. Nh2 {[%emt 0:00:03]} Nf6 {[%emt 0:00:03]} 16. f4 {[%emt 0:00:03]} Rg8 {[%emt 0:00:03]} 17. fxe5 {[%emt 0:00:03]} dxe5 {[%emt 0:00:03]} 18. Bxh6 {[%emt 0:00:03]} e4 {[%emt 0:00:03]} 19. Bf4 {[%emt 0:00:03]} Qd7 {[%emt 0:00:03]} 20. Be2 {[%emt 0:00:03]} O-O-O {[%emt 0:00:03]} 21. d6 {[%emt 0:00:03]} Qc6 {[%emt 0:00:00]} 22. Qb3 {[%emt 0:00:00]} Bxd6 {[%emt 0:00:00]} 23. Bxd6 {[%emt 0:00:00]} Rxd6 {[%emt 0:00:00]} 24. Rad1 {[%emt 0:00:00]} e3 {[%emt 0:00:00]} 25. Rxd6 {[%emt 0:00:00]} Qxg2# {[%emt 0:00:00]} 0-1